Workbook

Sheet Sheet1
A1: COMPONENT PRICES
A3: MACHINE | B3: RATE/h | D3: MATERIAL PRICE | E3: MASTER BATCH PRICE | F3: RATIO % | G3: MATERIAL ACTUAL PRICE /kg
A4: 200 | B4: 1000 | D4: 36 | E4: 50 | F4: 2.5 | G4: =(D4+(E4*F4/100))*1.2 -> 44.7
A5: 80 | B5: 700
A7: COMPONENT | B7: WIEGHT IN Kg | C7: MATERIAL COST | D7: RUN TIME IN SECONDS | E7: RUNNING COST | F7: UNIT COST | G7: QUANTITY | H7: COST
A8: BIG MACHINE
A9: BASE | B9: 0.385 | C9: =G4*B9*1.2 -> 20.6514 | D9: 60 | E9: =B4/3600*D9 -> 16.66666667 | F9: =E9+C9 -> 37.31806667 | G9: 1 | H9: =F9*G9 -> 37.31806667 | J9: =H9*1.3 -> 48.51348667 | L9: 45 | M9: 45
A10: SIDE | B10: 0.175 | C10: =G4*B10*1.2 -> 9.387 | D10: 60 | E10: =B4/3600*D10 -> 16.66666667 | F10: =E10+C10 -> 26.05366667 | G10: 2 | H10: =F10*G10 -> 52.10733333 | J10: =H10*1.3 -> 67.73953333 | L10: 35 | M10: =L10*G10 -> 70
A11: SMALL MACHINE
A12: RIB | B12: 0.036 | C12: =G4*B12*1.2 -> 1.93104 | D12: 40 | E12: =B5/3600*D12 -> 7.777777778 | F12: 9.708817778 | G12: 12 | H12: 116.5058133 | J12: =H12*1.3 -> 151.4575573 | L12: 12 | M12: =L12*G12 -> 144
A13: COVER | B13: 0.029 | C13: =G4*B13*1.2 -> 1.55556 | D13: 40 | E13: =B5/3600*D13 -> 7.777777778 | F13: 9.333337778 | G13: 1 | H13: 9.333337778 | J13: =H13*1.2 -> 11.20000533 | L13: 11 | M13: 11
A14: BUTTONS | B14: 0.001 | C14: =G4*B14*1.2 -> 0.05364 | D14: 20 | E14: =B5/3600*D14 -> 3.888888889 | F14: 3.942528889 | G14: 8 | H14: 31.54023111 | J14: =H14*1.2 -> 37.84827733 | L14: 4.5 | M14: =L14*G14 -> 36
D15: Time halved for 2 shot | H15: =SUM(H9:H14) -> 246.8047822 | J15: =SUM(J9:J14) -> 316.75886 | M15: =SUM(M9:M14) -> 306

Sheet Sheet2

Sheet Sheet3
